fUST/lending_fUST_20240414
["ID","MTS","AMOUNT","RATE_DAILY","PERIOD"]
[322469610,1713034250683,-631.18,0.00035068,7]
[322469612,1713034250693,-500.0,0.00035068,7]
[322469614,1713034250702,-500.0,0.00035068,7]
[322469616,1713034250712,-1108.29,0.00035068,7]
[322469618,1713034250720,-1058.01,0.00035068,7]
[322469619,1713034250730,-3130.05,0.00035068,7]
[322469621,1713034250740,-3156.38,0.00035068,7]
[322469633,1713034250846,-2204.21,0.00035068,7]
[322469635,1713034250856,-1292.06,0.00035068,7]
[322469637,1713034250866,-2257.86,0.00035068,7]
[322469640,1713034250876,-2347.19,0.00035068,7]
[322469641,1713034250886,-2771.79,0.00035068,7]
[322469644,1713034250896,-5441.75,0.00035068,7]
[322469645,1713034250906,-500.0,0.00035068,7]
[322469647,1713034250915,-816.31,0.00035068,7]
[322469649,1713034250924,-500.0,0.00035068,7]
[322469651,1713034250934,-530.91,0.00035068,7]
[322469653,1713034250943,-720.0,0.00035068,7]
[322469655,1713034250953,-726.94,0.00035068,7]
[322469657,1713034250963,-695.69,0.00035068,7]
[322469659,1713034250972,-1012.3,0.00035068,7]
[322469661,1713034250981,-2327.61,0.00035068,7]
[322469663,1713034250991,-858.26,0.00035068,7]
[322469665,1713034251000,-500.0,0.00035068,7]
[322469667,1713034251010,-927.05,0.00035068,7]
[322469669,1713034251019,-717.9,0.00035068,7]
[322469671,1713034251029,-2049.3,0.00035068,7]
[322469673,1713034251038,-1934.65,0.00035068,7]
[322469675,1713034251047,-500.0,0.00035068,7]
[322469677,1713034251057,-500.0,0.00035068,7]
[322469679,1713034251068,-1234.02,0.00035068,7]
[322469681,1713034251077,-660.39,0.00035068,7]
[322469683,1713034251090,-8360.86,0.00035068,7]
[322469685,1713034251100,-1086.08,0.00035068,7]
[322469687,1713034251110,-500.0,0.00035068,7]
[322469690,1713034251119,-30751.42,0.00035068,7]
[322469691,1713034251131,-940.83,0.00035068,7]
[322469693,1713034251141,-1345.11,0.00035068,2]
[322469695,1713034251150,-639.35,0.00035068,7]
[322469697,1713034251159,-2343.97,0.00035068,7]
[322469699,1713034251169,-867.98,0.00035068,7]
[322469701,1713034251178,-560.0,0.00035247,2]
[322469703,1713034251188,-1404.8,0.00035341,7]
[322469705,1713034251197,-500.0,0.00035342,7]
[322469707,1713034251207,-734.77,0.00035342,7]
[322469709,1713034251216,-894.15,0.00035342,7]
[322469711,1713034251226,-500.0,0.00035342,7]
[322469713,1713034251235,-1079.46,0.00035342,7]
[322469715,1713034251244,-500.0,0.00035342,7]
[322469717,1713034251254,-272.32809043,0.00035342,7]
[322469719,1713034251263,-849.98,0.00035342,7]
[322469721,1713034251273,-1998.2,0.00035342,7]
[322469723,1713034251282,-783.49,0.00035342,7]
[322469725,1713034251292,-500.0,0.00035342,7]
[322469727,1713034251301,-631.18,0.00035342,7]
[322469729,1713034251311,-500.0,0.00035342,7]
[322469731,1713034251320,-500.0,0.00035342,7]
[322469733,1713034251329,-1108.29,0.00035342,7]
[322469734,1713034251340,-1058.01,0.00035342,7]
[322469736,1713034251349,-3130.05,0.00035342,7]
[322469738,1713034251359,-3156.38,0.00035342,7]
[322469740,1713034251369,-2204.21,0.00035342,7]
[322469742,1713034251379,-1292.06,0.00035342,7]
[322469744,1713034251390,-2257.86,0.00035342,7]
[322469746,1713034251400,-2347.19,0.00035342,7]
[322469748,1713034251411,-2771.79,0.00035342,7]
[322469750,1713034251421,-5441.75,0.00035342,7]
[322469752,1713034251430,-500.0,0.00035342,7]
[322469754,1713034251440,-816.31,0.00035342,7]
[322469756,1713034251449,-441.90496419,0.00035342,7]
[322469758,1713034251459,-530.91,0.00035342,7]
[322469760,1713034251468,-720.0,0.00035342,7]
[322469762,1713034251477,-726.94,0.00035342,7]
[322469763,1713034251487,-695.69,0.00035342,7]
[322469765,1713034251496,-375.91609,0.00035342,7]
[322477725,1713034476737,7692.13746995,0.00037247,30]
[322477922,1713035438306,-500.0,0.00027359,2]
[322477924,1713035438316,-906.67933827,0.0002736,2]
[322477926,1713035438326,-2007.11563747,0.00027361,2]
[322477928,1713035438335,-162.191495,0.00027397,2]
[322477930,1713035438345,-162.191509,0.00027397,2]
[322477931,1713035438354,-162.457886,0.00031165,2]
[322477934,1713035438364,-2000.0,0.00032776,2]
[322477935,1713035438374,-249.33650147,0.00032776,6]
[322477938,1713035438384,-173.7854786,0.00032776,2]
[322477940,1713035438394,-400.0,0.00032873,2]
[322477942,1713035438405,-404.21971349,0.00032874,2]
[322477944,1713035438415,-435.79204955,0.00032874,4]
[322477946,1713035438426,-263.43758151,0.00032874,4]
[322477948,1713035438445,-277.03921209,0.00032874,4]
[322477951,1713035438457,-400.0,0.00032874,2]
[322477953,1713035438468,-242.99498652,0.00032874,4]
[322477955,1713035438478,-855.02218178,0.00032874,4]
[322477957,1713035438488,-9362.0206345,0.00032875,4]
[322477959,1713035438497,-22039.40958916,0.00032876,5]
[322477961,1713035438506,-500.0,0.00032876,7]
[322477963,1713035438515,-500.0,0.00032876,7]
[322477965,1713035438525,-500.0,0.00032876,7]
[322477967,1713035438537,-507.93374897,0.00032876,7]
[322477969,1713035438546,-500.0,0.00032876,7]
[322477971,1713035438555,-500.0,0.00032876,7]
[322477973,1713035438565,-500.0,0.00032876,7]
[322477975,1713035438574,-500.0,0.00032876,7]
[322477977,1713035438584,-500.0,0.00032876,7]
[322477979,1713035438594,-509.49711825,0.00032876,7]
[322477981,1713035438603,-322.12859759,0.00032876,7]
[322477983,1713035438613,-500.0,0.00032876,7]
[322477986,1713035438622,-500.0,0.00032876,7]
[322477988,1713035438631,-500.0,0.00032876,7]
[322477990,1713035438640,-500.0,0.00032876,7]
[322477992,1713035438650,-500.0,0.00032876,7]
[322477994,1713035438659,-502.83471538,0.00032876,7]
[322477996,1713035438669,-500.0,0.00032876,7]
[322477998,1713035438678,-500.0,0.00032876,7]
[322478000,1713035438687,-500.0,0.00032876,7]
[322478002,1713035438697,-500.0,0.00032876,7]
[322478004,1713035438706,-500.0,0.00032876,7]
[322478006,1713035438714,-500.0,0.00032876,7]
[322478008,1713035438723,-500.0,0.00032876,7]
[322478010,1713035438732,-500.0,0.00032876,7]
[322478012,1713035438741,-500.0,0.00032876,7]
[322478014,1713035438751,-506.47940517,0.00032876,7]
[322478016,1713035438760,-500.0,0.00032876,7]
[322478018,1713035438769,-500.0,0.00032876,7]
[322478020,1713035438778,-500.0,0.00032876,7]
[322478022,1713035438790,-500.0,0.00032876,7]
[322478024,1713035438800,-500.0,0.00032876,7]
[322478025,1713035438808,-500.0,0.00032876,7]
[322478027,1713035438817,-500.0,0.00032876,7]
[322478030,1713035438827,-503.17589893,0.00032876,7]
[322478032,1713035438835,-500.0,0.00032876,7]
[322478034,1713035438844,-500.0,0.00032876,7]
[322478036,1713035438853,-500.0,0.00032876,7]
[322478038,1713035438863,-500.0,0.00032876,7]
[322478040,1713035438873,-500.0,0.00032876,7]
[322478042,1713035438881,-500.0,0.00032876,7]
[322478044,1713035438890,-500.0,0.00032876,7]
[322478046,1713035438900,-516.49275527,0.00032876,7]
[322478048,1713035438909,-500.0,0.00032876,7]
[322478050,1713035438918,-502.85541641,0.00032876,14]
[322478052,1713035438927,-500.0,0.00032876,7]
[322478054,1713035438936,-500.0,0.00032876,7]
[322478056,1713035438946,-500.0,0.00032876,7]
[322478058,1713035438955,-506.63996995,0.00032876,7]
[322478060,1713035438964,-500.0,0.00032876,7]
[322478062,1713035438973,-500.0,0.00032876,7]
[322478064,1713035438982,-500.0,0.00032876,7]
[322478066,1713035438991,-500.0,0.00032876,7]
[322478068,1713035439001,-500.0,0.00032876,7]
[322478070,1713035439014,-507.60690274,0.00032876,7]
[322478072,1713035439023,-500.0,0.00032876,7]
[322478074,1713035439034,-501.56750092,0.00032876,7]
[322478076,1713035439043,-500.0,0.00032876,7]
[322478078,1713035439053,-500.0,0.00032876,7]
[322478080,1713035439062,-500.0,0.00032876,7]
[322478082,1713035439071,-500.0,0.00032876,7]
[322478084,1713035439081,-500.0,0.00032876,7]
[322478087,1713035439096,-500.0,0.00032876,7]
[322478089,1713035439106,-500.0,0.00032876,7]
[322478091,1713035439115,-500.0,0.00032876,7]
[322478093,1713035439125,-500.0,0.00032876,7]
[322478095,1713035439134,-500.0,0.00032876,7]
[322478097,1713035439142,-520.17380218,0.00032876,7]
[322478099,1713035439152,-500.0,0.00032876,7]
[322478101,1713035439161,-500.0,0.00032876,7]
[322478103,1713035439170,-504.16077056,0.00032876,7]
[322478105,1713035439179,-500.0,0.00032876,7]
[322478107,1713035439188,-502.33900205,0.00032876,7]
[322478109,1713035439197,-503.33800379,0.00032876,7]
[322478111,1713035439206,-1325.08,0.00032876,7]
[322478113,1713035439215,-500.0,0.00032876,7]
[322478115,1713035439224,-500.0,0.00032876,7]
[322478117,1713035439233,-500.0,0.00032876,7]
[322478119,1713035439242,-164.23039283,0.00032876,7]
[322478121,1713035439251,-275.83421792,0.00032876,7]
[322478123,1713035439259,-500.0,0.00032876,7]
[322478125,1713035439268,-500.0,0.00032876,7]
[322478128,1713035439279,-500.0,0.00032876,7]
[322478130,1713035439291,-502.56745271,0.00032876,7]
[322478132,1713035439300,-500.0,0.00032876,7]
[322478134,1713035439309,-500.0,0.00032876,7]
[322478136,1713035439319,-500.82768302,0.00032876,7]
[322478138,1713035439328,-500.0,0.00032876,7]
[322478140,1713035439337,-500.0,0.00032876,7]
[322478142,1713035439346,-500.0,0.00032876,7]
[322478144,1713035439359,-500.0,0.00032876,7]
[322478146,1713035439368,-500.0,0.00032876,7]
[322478148,1713035439378,-991.99323508,0.00032876,7]
[322478150,1713035439387,-183.29234504,0.00032876,7]
[322478152,1713035439396,-500.0,0.00032876,7]
[322478154,1713035439406,-500.0,0.00032876,7]
[322478156,1713035439415,-375.99736236,0.00032876,7]
[322478158,1713035439425,-590.04462163,0.00032876,7]
[322478160,1713035439435,-500.0,0.00032876,7]
[322478163,1713035439444,-500.0,0.00032876,7]
[322478165,1713035439454,-500.0,0.00032876,7]
[322478167,1713035439462,-500.0,0.00032876,7]
[322478169,1713035439472,-500.0,0.00032876,7]
[322478171,1713035439481,-500.0,0.00032876,7]
[322478173,1713035439491,-500.0,0.00032876,7]
[322478175,1713035439499,-503.12603067,0.00032876,7]
[322478177,1713035439508,-501.56647193,0.00032876,7]
[322478179,1713035439517,-449.79776823,0.00032876,7]
[322478181,1713035439527,-502.93551014,0.00032876,7]
[322478183,1713035439538,-300.0,0.00032876,7]
[322478185,1713035439548,-500.0,0.00032876,7]
[322478187,1713035439557,-500.0,0.00032876,7]
[322478189,1713035439566,-500.0,0.00032876,7]
[322478191,1713035439576,-500.0,0.00032876,7]
[322478193,1713035439586,-500.0,0.00032876,7]
[322478195,1713035439597,-500.0,0.00032876,7]
[322478197,1713035439607,-500.0,0.00032876,7]
[322478199,1713035439617,-500.0,0.00032876,7]
[322478201,1713035439627,-500.0,0.00032876,7]
[322478204,1713035439636,-500.0,0.00032876,7]
[322478206,1713035439645,-515.26721432,0.00032876,7]
[322478208,1713035439655,-738.86,0.00032876,7]
[322478210,1713035439664,-488.00298307,0.00032876,7]
[322478212,1713035439674,-500.0,0.00032876,7]
[322478214,1713035439683,-500.0,0.00032876,7]
[322478216,1713035439693,-500.0,0.00032876,7]
[322478219,1713035439703,-500.0,0.00032876,7]
[322478221,1713035439713,-500.0,0.00032876,7]
[322478223,1713035439722,-500.0,0.00032876,7]
[322478225,1713035439731,-500.0,0.00032876,7]
[322478227,1713035439741,-500.0,0.00032876,7]
[322478230,1713035439750,-500.0,0.00032876,7]
[322478233,1713035439759,-500.0,0.00032876,7]
[322478236,1713035439769,-500.0,0.00032876,7]
[322478238,1713035439779,-500.0,0.00032876,7]
[322478240,1713035439791,-503.91738435,0.00032876,7]
[322478242,1713035439801,-500.0,0.00032876,7]
[322478245,1713035439811,-2235.77,0.00032876,7]
[322478246,1713035439821,-500.0,0.00032876,7]
[322478249,1713035439831,-500.0,0.00032876,7]
[322478251,1713035439840,-1103.99,0.00032876,7]
[322478253,1713035439849,-500.0,0.00032876,7]
[322478255,1713035439858,-500.65378748,0.00032876,7]
[322478257,1713035439867,-500.0,0.00032876,7]
[322478259,1713035439877,-500.0,0.00032876,7]
[322478261,1713035439886,-500.0,0.00032876,7]
[322478263,1713035439896,-1760.39,0.00032876,7]
[322478265,1713035439905,-500.0,0.00032876,7]
[322478267,1713035439915,-500.0,0.00032876,7]
[322478269,1713035439924,-500.0,0.00032876,7]
[322478271,1713035439933,-500.0,0.00032876,7]
[322478273,1713035439942,-500.0,0.00032876,7]
[322478275,1713035439951,-500.0,0.00032876,7]
[322478277,1713035439960,-2594.91,0.00032876,7]
[322478279,1713035439969,-1787.47,0.00032876,7]
[322478281,1713035439978,-158.81891326,0.00032876,7]
[322478283,1713035439987,-640.48,0.00032876,7]
[322478285,1713035440000,-500.0,0.00032876,7]
[322478287,1713035440010,-501.40871073,0.00032876,7]
[322478289,1713035440019,-500.0,0.00032876,7]
[322478290,1713035440028,-1076.72,0.00032876,7]
[322478291,1713035440041,-500.0,0.00032876,7]
[322478292,1713035440050,-500.0,0.00032876,7]
[322478293,1713035440060,-4896.33,0.00032876,7]
[322478294,1713035440069,-881.68,0.00032876,7]
[322478295,1713035440079,-500.0,0.00032876,7]
[322478296,1713035440089,-500.0,0.00032876,7]
[322478297,1713035440098,-500.0,0.00032876,7]
[322478298,1713035440107,-630.0,0.00032876,7]
[322478299,1713035440116,-500.0,0.00032876,7]
[322478300,1713035440126,-500.0,0.00032876,7]
[322478301,1713035440135,-500.0,0.00032876,7]
[322478302,1713035440144,-500.0,0.00032876,7]
[322478303,1713035440153,-2020.52,0.00032876,7]
[322478304,1713035440162,-518.33024176,0.00032876,7]
[322478305,1713035440171,-504.6097672,0.00032876,7]
[322478306,1713035440180,-500.0,0.00032876,7]
[322478307,1713035440190,-500.0,0.00032876,7]
[322478308,1713035440199,-591.08396249,0.00032876,7]
[322478309,1713035440208,-954.45,0.00032876,7]
[322478310,1713035440217,-500.0,0.00032876,7]
[322478311,1713035440226,-500.0,0.00032876,7]
[322478312,1713035440236,-500.0,0.00032876,7]
[322478313,1713035440244,-500.0,0.00032876,7]
[322478315,1713035440253,-500.0,0.00032876,7]
[322478317,1713035440262,-2705.08,0.00032876,7]
[322478319,1713035440271,-604.78920847,0.00032876,7]
[322478321,1713035440280,-501.17687522,0.00032876,7]
[322478323,1713035440293,-8012.49,0.00032876,7]
[322478325,1713035440302,-500.0,0.00032876,7]
[322478327,1713035440311,-500.0,0.00032876,7]
[322478329,1713035440320,-500.0,0.00032876,7]
[322478331,1713035440330,-500.0,0.00032876,7]
[322478333,1713035440339,-500.0,0.00032876,7]
[322478335,1713035440348,-503.35510766,0.00032876,7]
[322478337,1713035440358,-500.0,0.00032876,7]
[322478339,1713035440367,-1963.91,0.00032876,7]
[322478341,1713035440376,-500.0,0.00032876,7]
[322478343,1713035440385,-500.0,0.00032876,7]
[322478345,1713035440394,-666.7,0.00032876,7]
[322478347,1713035440403,-500.0,0.00032876,7]
[322478349,1713035440413,-500.0,0.00032876,7]
[322478351,1713035440422,-696.65,0.00032876,7]
[322478353,1713035440432,-782.29,0.00032876,7]
[322478355,1713035440441,-500.92296154,0.00032876,7]
[322478357,1713035440450,-632.88,0.00032876,7]
[322478359,1713035440459,-2230.62,0.00032876,7]
[322478361,1713035440467,-500.0,0.00032876,7]
[322478363,1713035440476,-500.0,0.00032876,7]
[322478365,1713035440486,-1854.04,0.00032876,7]
[322478367,1713035440495,-1086.68,0.00032876,7]
[322478369,1713035440503,-500.0,0.00032876,7]
[322478371,1713035440512,-500.0,0.00032876,7]
[322478373,1713035440520,-499.39043389,0.00032876,7]
[322478375,1713035440530,-500.0,0.00032876,7]
[322478377,1713035440544,-1182.6,0.00032876,7]
[322478379,1713035440552,-500.0,0.00032876,7]
[322478381,1713035440561,-503.57901693,0.00032876,7]
[322478383,1713035440570,-259.00466111,0.00032876,7]
[322478385,1713035440579,-512.13517562,0.00032876,7]
[322478387,1713035440588,-500.0,0.00032876,7]
[322478408,1713035440772,-500.0,0.00032876,7]
[322478409,1713035440782,-505.34467129,0.00032876,7]
[322478410,1713035440794,-500.0,0.00032876,7]
[322478412,1713035440804,-860.97,0.00032876,7]
[322478413,1713035440813,-500.0,0.00032876,7]
[322478415,1713035440822,-882.42,0.00032876,7]
[322478417,1713035440831,-910.26,0.00032876,7]
[322478419,1713035440842,-500.0,0.00032876,7]
[322478420,1713035440851,-505.81425759,0.00032876,7]
[322478422,1713035440861,-500.0,0.00032876,7]
[322478423,1713035440871,-612.71,0.00032876,7]
[322478424,1713035440880,-500.0,0.00032876,7]
[322478425,1713035440889,-687.99,0.00032876,7]
[322478426,1713035440898,-500.0,0.00032876,7]
[322478427,1713035440907,-507.26959406,0.00032876,7]
[322478428,1713035440916,-500.0,0.00032876,7]
[322478429,1713035440925,-500.0,0.00032876,7]
[322478430,1713035440935,-500.0,0.00032876,7]
[322478431,1713035440944,-500.0,0.00032876,7]
[322478432,1713035440953,-500.0,0.00032876,7]
[322478433,1713035440963,-500.0,0.00032876,7]
[322478434,1713035440972,-500.0,0.00032876,7]
[322478435,1713035440981,-500.0,0.00032876,7]
[322478437,1713035440990,-931.51,0.00032876,7]
[322478438,1713035440999,-28739.08,0.00032876,7]
[322478439,1713035441012,-1075.74,0.00032876,7]
[322478441,1713035441021,-502.84228291,0.00032876,7]
[322478442,1713035441031,-500.0,0.00032876,7]
[322478443,1713035441043,-500.0,0.00032876,7]
[322478445,1713035441052,-500.0,0.00032876,7]
[322478447,1713035441061,-500.0,0.00032876,7]
[322478449,1713035441070,-500.0,0.00032876,7]
[322478451,1713035441079,-814.56,0.00032876,7]
[322478452,1713035441089,-500.0,0.00032876,7]
[322478455,1713035441099,-153.39951599,0.00032876,7]
[322478457,1713035441108,-501.40211522,0.00032876,7]
[322478459,1713035441117,-500.0,0.00032876,7]
[322478461,1713035441127,-2246.3,0.00032876,7]
[322478463,1713035441136,-500.0,0.00032876,7]
[322478465,1713035441146,-502.24177056,0.00032876,7]
[322478467,1713035441156,-500.0,0.00032876,7]
[322478469,1713035441165,-500.0,0.00032876,7]
[322478471,1713035441175,-500.0,0.00032876,7]
[322478473,1713035441184,-1343.72,0.00032876,2]
[322478475,1713035441193,-831.82,0.00032876,7]
[322478477,1713035441201,-500.0,0.00032876,7]
[322478478,1713035441210,-202.9164481,0.000329,2]
[322478480,1713035441220,-500.0,0.00032999,7]
[322478482,1713035441228,-1200.0,0.00033,4]
[322478483,1713035441237,-500.0,0.00033148,7]
[322478485,1713035441247,-500.0,0.00033149,7]
[322478487,1713035441256,-500.0,0.00033149,7]
[322478488,1713035441266,-500.0,0.00033149,7]
[322478490,1713035441275,-321.9,0.00033149,7]
[322478492,1713035441283,-5524.32,0.00033149,2]
[322478494,1713035441294,-5524.32,0.00033149,2]
[322478496,1713035441303,-5524.32,0.00033149,2]
[322478498,1713035441312,-5524.32,0.00033149,2]
[322478500,1713035441321,-5524.32,0.00033149,2]
[322478502,1713035441330,-5524.32,0.00033149,2]
[322478504,1713035441339,-5524.32,0.00033149,2]
[322478506,1713035441347,-5524.33,0.00033149,2]
[322478508,1713035441356,-500.0,0.00033149,7]
[322478510,1713035441366,-500.0,0.0003315,7]
[322478512,1713035441375,-500.0,0.0003315,7]
[322478514,1713035441384,-500.0,0.0003315,7]
[322478516,1713035441393,-500.0,0.0003315,7]
[322478518,1713035441401,-500.0,0.0003315,7]
[322478520,1713035441410,-500.0,0.0003315,7]
[322478522,1713035441419,-500.0,0.0003315,7]
[322478524,1713035441428,-500.0,0.0003315,7]
[322478526,1713035441437,-504.09628153,0.0003315,7]
[322478528,1713035441446,-500.0,0.0003315,7]
[322478530,1713035441456,-500.0,0.0003315,7]
[322478532,1713035441465,-500.0,0.0003315,7]
[322478534,1713035441473,-500.0,0.0003315,7]
[322478536,1713035441482,-500.0,0.0003315,7]
[322478538,1713035441491,-500.0,0.0003315,7]
[322478540,1713035441502,-500.0,0.0003315,7]
[322478542,1713035441511,-500.0,0.0003315,7]
[322478544,1713035441520,-500.0,0.0003315,7]
[322478546,1713035441529,-500.0,0.0003315,7]
[322478548,1713035441539,-500.0,0.0003315,7]
[322478550,1713035441548,-500.0,0.0003315,7]
[322478552,1713035441557,-500.0,0.0003315,7]
[322478554,1713035441566,-1325.08,0.0003315,7]
[322478556,1713035441575,-365.15564107,0.0003315,7]
[322478558,1713035441584,-500.0,0.0003315,7]
[322478560,1713035441593,-515.2092472,0.0003315,7]
[322478562,1713035441601,-519.03290826,0.0003315,7]
[322478564,1713035441611,-500.0,0.0003315,7]
[322478566,1713035441619,-509.80590463,0.0003315,7]
[322478568,1713035441629,-500.0,0.0003315,7]
[322478570,1713035441637,-500.0,0.0003315,7]
[322478572,1713035441646,-500.0,0.0003315,7]
[322478574,1713035441656,-500.0,0.0003315,7]
[322478576,1713035441666,-500.0,0.0003315,7]
[322478578,1713035441675,-500.0,0.0003315,7]
[322478580,1713035441685,-500.0,0.0003315,7]
[322478582,1713035441695,-501.33177882,0.0003315,7]
[322478584,1713035441704,-300.0,0.0003315,7]
[322478586,1713035441713,-600.75248345,0.0003315,7]
[322478588,1713035441722,-500.0,0.0003315,7]
[322478590,1713035441731,-500.0,0.0003315,7]
[322478592,1713035441740,-500.0,0.0003315,7]
[322478594,1713035441749,-500.0,0.0003315,7]
[322478596,1713035441758,-500.0,0.0003315,7]
[322478598,1713035441767,-738.86,0.0003315,7]
[322478600,1713035441776,-293.0,0.0003315,7]
[322478602,1713035441786,-500.0,0.0003315,7]
[322478604,1713035441795,-500.0,0.0003315,7]
[322478606,1713035441803,-500.0,0.0003315,7]
[322478608,1713035441814,-500.0,0.0003315,7]
[322478610,1713035441824,-500.0,0.0003315,7]
[322478612,1713035441834,-500.0,0.0003315,7]
[322478614,1713035441844,-500.0,0.0003315,7]
[322478616,1713035441855,-2235.77,0.0003315,7]
[322478618,1713035441865,-500.0,0.0003315,7]
[322478620,1713035441874,-507.89043381,0.0003315,7]
[322478622,1713035441885,-1103.99,0.0003315,7]
[322478624,1713035441894,-500.0,0.0003315,7]
[322478626,1713035441904,-500.0,0.0003315,7]
[322478628,1713035441913,-173.91980545,0.0003315,7]
[322478630,1713035441925,-1760.39,0.0003315,7]
[322478632,1713035441935,-500.0,0.0003315,7]
[322478634,1713035441945,-500.0,0.0003315,7]
[322478636,1713035441954,-500.0,0.0003315,7]
[322478638,1713035441964,-500.0,0.0003315,7]
[322478640,1713035441973,-309.73189997,0.0003315,7]
[322478642,1713035441984,-2594.91,0.0003315,7]
[322478644,1713035441995,-1787.47,0.0003315,7]
[322478646,1713035442008,-640.48,0.0003315,7]
[322478648,1713035442017,-500.0,0.0003315,7]
[322478650,1713035442026,-1076.72,0.0003315,7]
[322478652,1713035442039,-500.0,0.0003315,7]
[322478654,1713035442050,-500.0,0.0003315,7]
[322478656,1713035442059,-4896.33,0.0003315,7]
[322478658,1713035442071,-881.68,0.0003315,7]
[322478660,1713035442081,-500.0,0.0003315,7]
[322478662,1713035442091,-500.0,0.0003315,7]
[322478664,1713035442101,-500.0,0.0003315,7]
[322478666,1713035442110,-630.0,0.0003315,7]
[322478668,1713035442120,-500.0,0.0003315,7]
[322478670,1713035442129,-2020.52,0.0003315,7]
[322478672,1713035442140,-500.0,0.0003315,7]
[322478674,1713035442149,-954.45,0.0003315,7]
[322478676,1713035442158,-500.0,0.0003315,7]
[322478678,1713035442168,-500.0,0.0003315,7]
[322478680,1713035442177,-500.0,0.0003315,7]
[322478682,1713035442186,-2705.08,0.0003315,7]
[322478684,1713035442196,-8012.49,0.0003315,7]
[322478686,1713035442205,-500.0,0.0003315,7]
[322478688,1713035442214,-500.0,0.0003315,7]
[322478690,1713035442223,-500.0,0.0003315,7]
[322478692,1713035442232,-500.0,0.0003315,7]
[322478694,1713035442241,-500.0,0.0003315,7]
[322478696,1713035442250,-1963.91,0.0003315,7]
[322478698,1713035442261,-500.0,0.0003315,7]
[322478700,1713035442270,-666.7,0.0003315,7]
[322478702,1713035442280,-500.0,0.0003315,7]
[322478704,1713035442291,-500.0,0.0003315,7]
[322478706,1713035442300,-696.65,0.0003315,7]
[322478708,1713035442309,-782.29,0.0003315,7]
[322478710,1713035442319,-632.88,0.0003315,7]
[322478712,1713035442328,-2230.62,0.0003315,7]
[322478714,1713035442339,-500.0,0.0003315,7]
[322478716,1713035442348,-1854.04,0.0003315,7]
[322478718,1713035442359,-1086.68,0.0003315,7]
[322478720,1713035442368,-1182.6,0.0003315,7]
[322478722,1713035442378,-500.0,0.0003315,7]
[322478724,1713035442387,-500.0,0.0003315,7]
[322478726,1713035442397,-500.0,0.0003315,7]
[322478728,1713035442406,-500.0,0.0003315,7]
[322478730,1713035442416,-860.97,0.0003315,7]
[322478732,1713035442425,-882.42,0.0003315,7]
[322478734,1713035442439,-910.26,0.0003315,7]
[322478736,1713035442449,-612.71,0.0003315,7]
[322478738,1713035442458,-687.99,0.0003315,7]
[322478740,1713035442468,-500.0,0.0003315,7]
[322478742,1713035442478,-500.0,0.0003315,7]
[322478744,1713035442487,-500.0,0.0003315,7]
[322478746,1713035442499,-500.0,0.0003315,7]
[322478748,1713035442508,-500.0,0.0003315,7]
[322478750,1713035442517,-500.0,0.0003315,7]